[Event "Titled Tuesday Blitz March 08 Early 2022"]
[White "Quirke, Jeffrey"]
[Black "Rosenberg, Evan S"]
[WhiteFideId "2013029"]
[BlackFideId "2019299"]
[WhiteElo "2111"]
[BlackElo "2268"]
[Result "1/2-1/2"]
[Round "04"]
[TimeControl "180+1"]
[Date "2022.03.09"]
[WhiteClock "0:00:12"]
[BlackClock "0:00:10"]

1. c4 {[%clk 0:03:00]}  e5 {[%clk 0:02:59]} 2. g3 {[%clk 0:03:00]}  Be7 {[%clk 0:02:59]} 3. Bg2 {[%clk 0:03:00]}  f5 {[%clk 0:03:00]} 4. Nc3 {[%clk 0:02:58]}  Nf6 {[%clk 0:02:59]} 5. d3 {[%clk 0:02:48]}  d6 {[%clk 0:02:58]} 6. Nf3 {[%clk 0:02:48]}  Nbd7 {[%clk 0:02:50]} 7. O-O {[%clk 0:02:38]}  O-O {[%clk 0:02:35]} 8. Rb1 {[%clk 0:02:34]}  a5 {[%clk 0:02:34]} 9. a3 {[%clk 0:02:33]}  Nc5 {[%clk 0:02:28]} 10. b4 {[%clk 0:02:29]}  axb4 {[%clk 0:02:29]} 11. axb4 {[%clk 0:02:30]}  Ne6 {[%clk 0:02:29]} 12. b5 {[%clk 0:02:23]}  Bd7 {[%clk 0:01:54]} 13. Bb2 {[%clk 0:02:00]}  b6 {[%clk 0:01:48]} 14. Nd2 {[%clk 0:01:54]}  Ra7 {[%clk 0:01:44]} 15. Ra1 {[%clk 0:01:54]}  Rxa1 {[%clk 0:01:43]} 16. Qxa1 {[%clk 0:01:54]}  f4 {[%clk 0:01:29]} 17. Qa7 {[%clk 0:01:49]}  Ng5 {[%clk 0:00:58]} 18. Nd5 {[%clk 0:01:46]}  Nxd5 {[%clk 0:00:57]} 19. Bxd5+ {[%clk 0:01:43]}  Be6 {[%clk 0:00:54]} 20. Ne4 {[%clk 0:01:07]}  Bxd5 {[%clk 0:00:51]} 21. cxd5 {[%clk 0:01:07]}  Nh3+ {[%clk 0:00:38]} 22. Kg2 {[%clk 0:01:06]}  Qd7 {[%clk 0:00:38]} 23. Qa4 {[%clk 0:00:56]}  Ng5 {[%clk 0:00:31]} 24. Nxg5 {[%clk 0:00:51]}  Bxg5 {[%clk 0:00:32]} 25. Qc4 {[%clk 0:00:44]}  Rf7 {[%clk 0:00:20]} 26. Bc1 {[%clk 0:00:43]}  Qg4 {[%clk 0:00:20]} 27. f3 {[%clk 0:00:34]}  Qh5 {[%clk 0:00:20]} 28. g4 {[%clk 0:00:30]}  Qg6 {[%clk 0:00:16]} 29. Bd2 {[%clk 0:00:26]}  h5 {[%clk 0:00:16]} 30. h3 {[%clk 0:00:27]}  Bh4 {[%clk 0:00:14]} 31. Rc1 {[%clk 0:00:21]}  Bg3 {[%clk 0:00:14]} 32. Qc6 {[%clk 0:00:19]}  hxg4 {[%clk 0:00:12]} 33. hxg4 {[%clk 0:00:18]}  Qg5 {[%clk 0:00:11]} 34. Rh1 {[%clk 0:00:18]}  g6 {[%clk 0:00:10]} 35. Qc1 {[%clk 0:00:14]}  Qe7 {[%clk 0:00:09]} 36. Be1 {[%clk 0:00:13]}  Bxe1 {[%clk 0:00:08]} 37. Qxe1 {[%clk 0:00:13]}  Rh7 {[%clk 0:00:09]} 38. Rxh7 {[%clk 0:00:10]}  Qxh7 {[%clk 0:00:08]} 39. Qh1 {[%clk 0:00:11]}  Qxh1+ {[%clk 0:00:07]} 40. Kxh1 {[%clk 0:00:10]}  g5 {[%clk 0:00:08]} 41. Kg2 {[%clk 0:00:10]}  Kg7 {[%clk 0:00:08]} 42. Kf2 {[%clk 0:00:10]}  Kf6 {[%clk 0:00:08]} 43. Ke1 {[%clk 0:00:10]}  Ke7 {[%clk 0:00:08]} 44. Kd2 {[%clk 0:00:10]}  Kd7 {[%clk 0:00:08]} 45. Kc3 {[%clk 0:00:11]}  Kc8 {[%clk 0:00:09]} 46. Kc4 {[%clk 0:00:11]}  Kd7 {[%clk 0:00:09]} 47. Kb4 {[%clk 0:00:11]}  Kc8 {[%clk 0:00:09]} 48. Kc4 {[%clk 0:00:12]}  Kd7 {[%clk 0:00:09]} 49. Kc3 {[%clk 0:00:12]}  Ke7 {[%clk 0:00:10]} 50. Kc4 {[%clk 0:00:12]}  Kd7 {[%clk 0:00:10]} 1/2-1/2


[Site "https://www.chess.com"]

[Event "Titled Tuesday Blitz March 08 Early 2022"]
[White "Rustemov, Alexander"]
[Black "Bettalli, Francesco"]
[WhiteFideId "4119002"]
[BlackFideId "2816453"]
[WhiteElo "2770"]
[BlackElo "2216"]
[Result "1-0"]
[Round "04"]
[TimeControl "180+1"]
[Date "2022.03.09"]
[WhiteClock "0:01:50"]
[BlackClock "0:02:20"]

1. d4 {[%clk 0:03:00]}  Nf6 {[%clk 0:02:57]} 2. c4 {[%clk 0:03:00]}  c5 {[%clk 0:02:57]} 3. d5 {[%clk 0:03:00]}  b5 {[%clk 0:02:57]} 4. Nf3 {[%clk 0:02:58]}  g6 {[%clk 0:02:56]} 5. cxb5 {[%clk 0:02:56]}  a6 {[%clk 0:02:55]} 6. e3 {[%clk 0:02:54]}  Bg7 {[%clk 0:02:55]} 7. Nc3 {[%clk 0:02:54]}  O-O {[%clk 0:02:54]} 8. a4 {[%clk 0:02:54]}  axb5 {[%clk 0:02:54]} 9. Bxb5 {[%clk 0:02:53]}  Qa5 {[%clk 0:02:55]} 10. O-O {[%clk 0:02:52]}  Ba6 {[%clk 0:02:55]} 11. Bd2 {[%clk 0:02:50]}  Bxb5 {[%clk 0:02:53]} 12. axb5 {[%clk 0:02:49]}  Qxa1 {[%clk 0:02:52]} 13. Qxa1 {[%clk 0:02:49]}  Rxa1 {[%clk 0:02:53]} 14. Rxa1 {[%clk 0:02:49]}  d6 {[%clk 0:02:54]} 15. Ra7 {[%clk 0:02:36]}  Nbd7 {[%clk 0:02:51]} 16. e4 {[%clk 0:02:26]}  Rb8 {[%clk 0:02:45]} 17. h3 {[%clk 0:02:20]}  c4 {[%clk 0:02:45]} 18. Be3 {[%clk 0:02:18]}  Kf8 {[%clk 0:02:41]} 19. Nd4 {[%clk 0:02:17]}  Nc5 {[%clk 0:02:39]} 20. Nc6 {[%clk 0:02:15]}  Re8 {[%clk 0:02:34]} 21. Bxc5 {[%clk 0:02:14]}  dxc5 {[%clk 0:02:35]} 22. b6 {[%clk 0:02:13]}  e6 {[%clk 0:02:30]} 23. b7 {[%clk 0:02:10]}  Nd7 {[%clk 0:02:31]} 24. Ra8 {[%clk 0:02:03]}  exd5 {[%clk 0:02:29]} 25. exd5 {[%clk 0:01:58]}  Bd4 {[%clk 0:02:20]} 26. Rxe8+ {[%clk 0:01:55]}  Kxe8 {[%clk 0:02:20]} 27. b8=Q+ {[%clk 0:01:55]}  Nxb8 {[%clk 0:02:20]} 28. Nxb8 {[%clk 0:01:56]}  Ke7 {[%clk 0:02:20]} 29. Nc6+ {[%clk 0:01:53]}  Kd6 {[%clk 0:02:20]} 30. Na5 {[%clk 0:01:52]}  Bxc3 {[%clk 0:02:19]} 31. bxc3 {[%clk 0:01:52]}  Kxd5 {[%clk 0:02:20]} 32. f3 {[%clk 0:01:50]} 1-0


[Site "https://www.chess.com"]

[Event "Titled Tuesday Blitz March 08 Early 2022"]
[White "Samant Aditya S"]
[Black "Moroni, Luca Jr"]
[WhiteFideId "35080580"]
[BlackFideId "865834"]
[WhiteElo "1916"]
[BlackElo "2573"]
[Result "1/2-1/2"]
[Round "04"]
[TimeControl "180+1"]
[Date "2022.03.08"]
[WhiteClock "0:00:05"]
[BlackClock "0:00:01"]

1. d4 {[%clk 0:03:00]}  d6 {[%clk 0:03:00]} 2. e4 {[%clk 0:03:00]}  e5 {[%clk 0:03:00]} 3. Nf3 {[%clk 0:02:57]}  exd4 {[%clk 0:03:00]} 4. Nxd4 {[%clk 0:02:58]}  Nf6 {[%clk 0:03:01]} 5. Nc3 {[%clk 0:02:58]}  Be7 {[%clk 0:03:01]} 6. Bf4 {[%clk 0:02:55]}  O-O {[%clk 0:03:02]} 7. Be2 {[%clk 0:02:51]}  Re8 {[%clk 0:02:53]} 8. O-O {[%clk 0:02:50]}  Bf8 {[%clk 0:02:52]} 9. Bf3 {[%clk 0:02:25]}  Nbd7 {[%clk 0:02:50]} 10. Bg3 {[%clk 0:01:56]}  Ne5 {[%clk 0:02:38]} 11. Be2 {[%clk 0:01:56]}  Ng6 {[%clk 0:02:37]} 12. Bf3 {[%clk 0:01:45]}  c6 {[%clk 0:02:27]} 13. Re1 {[%clk 0:01:42]}  Qb6 {[%clk 0:02:18]} 14. Nb3 {[%clk 0:01:34]}  Be6 {[%clk 0:02:04]} 15. Qd2 {[%clk 0:01:27]}  Rad8 {[%clk 0:02:01]} 16. Rad1 {[%clk 0:01:25]}  Ne5 {[%clk 0:01:44]} 17. Be2 {[%clk 0:01:24]}  Bc4 {[%clk 0:01:33]} 18. Qd4 {[%clk 0:00:42]}  Qxd4 {[%clk 0:01:22]} 19. Nxd4 {[%clk 0:00:41]}  Bxe2 {[%clk 0:01:19]} 20. Rxe2 {[%clk 0:00:42]}  Ng6 {[%clk 0:01:12]} 21. Nf5 {[%clk 0:00:20]}  d5 {[%clk 0:01:12]} 22. exd5 {[%clk 0:00:21]}  Rxe2 {[%clk 0:01:13]} 23. Nxe2 {[%clk 0:00:22]}  Rxd5 {[%clk 0:01:13]} 24. Rxd5 {[%clk 0:00:21]}  Nxd5 {[%clk 0:01:14]} 25. Bd6 {[%clk 0:00:17]}  Nh4 {[%clk 0:00:48]} 26. Bxf8 {[%clk 0:00:12]}  Nxf5 {[%clk 0:00:48]} 27. Ba3 {[%clk 0:00:12]}  f6 {[%clk 0:00:46]} 28. b3 {[%clk 0:00:12]}  Kf7 {[%clk 0:00:46]} 29. Kf1 {[%clk 0:00:12]}  Ke6 {[%clk 0:00:46]} 30. g3 {[%clk 0:00:12]}  g6 {[%clk 0:00:43]} 31. Ke1 {[%clk 0:00:12]}  Kd7 {[%clk 0:00:34]} 32. Kd2 {[%clk 0:00:12]}  Ng7 {[%clk 0:00:32]} 33. c4 {[%clk 0:00:12]}  Nc7 {[%clk 0:00:31]} 34. Bb2 {[%clk 0:00:12]}  Ke7 {[%clk 0:00:30]} 35. Nf4 {[%clk 0:00:12]}  Nce6 {[%clk 0:00:28]} 36. Nd3 {[%clk 0:00:12]}  Ne8 {[%clk 0:00:26]} 37. Ke3 {[%clk 0:00:11]}  b6 {[%clk 0:00:25]} 38. Nb4 {[%clk 0:00:11]}  Kd7 {[%clk 0:00:24]} 39. Nd3 {[%clk 0:00:10]}  c5 {[%clk 0:00:22]} 40. Ke2 {[%clk 0:00:09]}  Ke7 {[%clk 0:00:22]} 41. Ne1 {[%clk 0:00:09]}  Nd6 {[%clk 0:00:22]} 42. Nc2 {[%clk 0:00:09]}  a5 {[%clk 0:00:21]} 43. Ne3 {[%clk 0:00:10]}  Nc7 {[%clk 0:00:18]} 44. Kd3 {[%clk 0:00:10]}  Ke6 {[%clk 0:00:18]} 45. f4 {[%clk 0:00:10]}  f5 {[%clk 0:00:18]} 46. Be5 {[%clk 0:00:10]}  Nde8 {[%clk 0:00:17]} 47. Bxc7 {[%clk 0:00:09]}  Nxc7 {[%clk 0:00:18]} 48. Kc3 {[%clk 0:00:09]}  Kd6 {[%clk 0:00:17]} 49. a4 {[%clk 0:00:09]}  Kc6 {[%clk 0:00:18]} 50. Kd3 {[%clk 0:00:09]}  Kd7 {[%clk 0:00:17]} 51. Kc3 {[%clk 0:00:09]}  Kd6 {[%clk 0:00:18]} 52. Kd3 {[%clk 0:00:09]}  Kc6 {[%clk 0:00:18]} 53. Kc3 {[%clk 0:00:09]}  Ne6 {[%clk 0:00:19]} 54. Nd5 {[%clk 0:00:09]}  Nd4 {[%clk 0:00:19]} 55. Nf6 {[%clk 0:00:08]}  h5 {[%clk 0:00:18]} 56. Nd5 {[%clk 0:00:08]}  Nf3 {[%clk 0:00:16]} 57. Ne7+ {[%clk 0:00:08]}  Kd6 {[%clk 0:00:14]} 58. Nxg6 {[%clk 0:00:09]}  Nxh2 {[%clk 0:00:14]} 59. Nh4 {[%clk 0:00:07]}  Ke6 {[%clk 0:00:14]} 60. Kd3 {[%clk 0:00:04]}  Nf1 {[%clk 0:00:14]} 61. Ke2 {[%clk 0:00:04]}  Nxg3+ {[%clk 0:00:15]} 62. Kf3 {[%clk 0:00:05]}  Ne4 {[%clk 0:00:15]} 63. Ng6 {[%clk 0:00:05]}  Nd2+ {[%clk 0:00:15]} 64. Ke3 {[%clk 0:00:05]}  Nxb3 {[%clk 0:00:16]} 65. Ne5 {[%clk 0:00:06]}  h4 {[%clk 0:00:15]} 66. Nf3 {[%clk 0:00:06]}  h3 {[%clk 0:00:15]} 67. Ng5+ {[%clk 0:00:07]}  Kf6 {[%clk 0:00:13]} 68. Nxh3 {[%clk 0:00:08]}  Nd4 {[%clk 0:00:13]} 69. Kd3 {[%clk 0:00:08]}  Ne6 {[%clk 0:00:13]} 70. Ke3 {[%clk 0:00:08]}  Kg6 {[%clk 0:00:14]} 71. Nf2 {[%clk 0:00:06]}  Kh5 {[%clk 0:00:14]} 72. Nd3 {[%clk 0:00:06]}  Kg4 {[%clk 0:00:14]} 73. Ne5+ {[%clk 0:00:06]}  Kg3 {[%clk 0:00:15]} 74. Ng6 {[%clk 0:00:07]}  Nd4 {[%clk 0:00:14]} 75. Ne7 {[%clk 0:00:06]}  Kg2 {[%clk 0:00:14]} 76. Nd5 {[%clk 0:00:06]}  Nc2+ {[%clk 0:00:13]} 77. Kd3 {[%clk 0:00:05]}  Nb4+ {[%clk 0:00:13]} 78. Ke3 {[%clk 0:00:04]}  Nc2+ {[%clk 0:00:08]} 79. Kd3 {[%clk 0:00:05]}  Nd4 {[%clk 0:00:03]} 80. Ke3 {[%clk 0:00:05]}  Nc2+ {[%clk 0:00:01]} 1/2-1/2


[Site "https://www.chess.com"]

[Event "Titled Tuesday Blitz March 08 Early 2022"]
[White "Sarkar, Justin"]
[Black "Jaferian, Koosha"]
[WhiteFideId "2010011"]
[BlackFideId "12507440"]
[WhiteElo "2038"]
[BlackElo "2030"]
[Result "0-1"]
[Round "04"]
[TimeControl "180+1"]
[Date "2022.03.09"]
[WhiteClock "0:00:01"]
[BlackClock "0:00:09"]

1. d4 {[%clk 0:03:00]}  Nf6 {[%clk 0:02:56]} 2. c4 {[%clk 0:02:58]}  e6 {[%clk 0:02:56]} 3. Nf3 {[%clk 0:02:53]}  b6 {[%clk 0:02:56]} 4. g3 {[%clk 0:02:48]}  Ba6 {[%clk 0:02:56]} 5. Qc2 {[%clk 0:02:31]}  Bb4+ {[%clk 0:02:50]} 6. Bd2 {[%clk 0:02:28]}  Be7 {[%clk 0:02:47]} 7. e4 {[%clk 0:02:26]}  d5 {[%clk 0:02:47]} 8. cxd5 {[%clk 0:02:13]}  Bxf1 {[%clk 0:02:47]} 9. Kxf1 {[%clk 0:02:08]}  exd5 {[%clk 0:02:47]} 10. e5 {[%clk 0:02:08]}  Ne4 {[%clk 0:02:48]} 11. Nc3 {[%clk 0:02:05]}  Nxc3 {[%clk 0:02:45]} 12. Bxc3 {[%clk 0:02:00]}  Qd7 {[%clk 0:02:45]} 13. h4 {[%clk 0:01:58]}  c5 {[%clk 0:02:44]} 14. Kg2 {[%clk 0:01:51]}  c4 {[%clk 0:02:44]} 15. b3 {[%clk 0:01:38]}  b5 {[%clk 0:02:44]} 16. bxc4 {[%clk 0:01:28]}  bxc4 {[%clk 0:02:41]} 17. Ng5 {[%clk 0:01:26]}  Nc6 {[%clk 0:01:49]} 18. Rae1 {[%clk 0:01:13]}  Nd8 {[%clk 0:01:46]} 19. Nxh7 {[%clk 0:00:55]}  Ne6 {[%clk 0:01:35]} 20. f4 {[%clk 0:00:47]}  g6 {[%clk 0:01:32]} 21. Ng5 {[%clk 0:00:35]}  Rh5 {[%clk 0:01:05]} 22. Rb1 {[%clk 0:00:18]}  Ng7 {[%clk 0:00:59]} 23. Rhe1 {[%clk 0:00:12]}  Qg4 {[%clk 0:00:49]} 24. Qe2 {[%clk 0:00:05]}  Qxe2+ {[%clk 0:00:34]} 25. Rxe2 {[%clk 0:00:06]}  Nf5 {[%clk 0:00:14]} 26. Nf3 {[%clk 0:00:05]}  Rh8 {[%clk 0:00:14]} 27. Rb5 {[%clk 0:00:05]}  Rd8 {[%clk 0:00:13]} 28. Kf2 {[%clk 0:00:04]}  Ng7 {[%clk 0:00:13]} 29. Reb2 {[%clk 0:00:04]}  Ne6 {[%clk 0:00:13]} 30. Rb7 {[%clk 0:00:02]}  a6 {[%clk 0:00:14]} 31. Ra7 {[%clk 0:00:02]}  Kf8 {[%clk 0:00:09]} 32. Rbb7 {[%clk 0:00:01]}  Re8 {[%clk 0:00:09]} 0-1


[Site "https://www.chess.com"]

[Event "Titled Tuesday Blitz March 08 Early 2022"]
[White "Shubenkova, Veronika"]
[Black "Sahin, Handenur"]
[WhiteFideId "44124040"]
[BlackFideId "6334865"]
[WhiteElo "1938"]
[BlackElo "2162"]
[Result "1-0"]
[Round "04"]
[TimeControl "180+1"]
[Date "2022.03.09"]
[WhiteClock "0:00:06"]
[BlackClock "0:00:10"]

1. d4 {[%clk 0:02:59]}  d5 {[%clk 0:02:59]} 2. e3 {[%clk 0:02:59]}  Nf6 {[%clk 0:02:59]} 3. f4 {[%clk 0:02:59]}  Bf5 {[%clk 0:02:58]} 4. Bd3 {[%clk 0:02:59]}  e6 {[%clk 0:02:55]} 5. Nf3 {[%clk 0:02:59]}  Nbd7 {[%clk 0:02:54]} 6. O-O {[%clk 0:02:58]}  Ne4 {[%clk 0:02:52]} 7. Nbd2 {[%clk 0:02:55]}  Ndf6 {[%clk 0:02:49]} 8. Ne5 {[%clk 0:02:54]}  h5 {[%clk 0:02:43]} 9. Nxe4 {[%clk 0:02:52]}  Nxe4 {[%clk 0:02:35]} 10. c3 {[%clk 0:02:47]}  Bd6 {[%clk 0:02:33]} 11. Qe2 {[%clk 0:02:44]}  f6 {[%clk 0:02:16]} 12. Nf3 {[%clk 0:02:33]}  Qe7 {[%clk 0:02:15]} 13. Bd2 {[%clk 0:02:30]}  g5 {[%clk 0:02:10]} 14. fxg5 {[%clk 0:02:27]}  fxg5 {[%clk 0:02:10]} 15. Ne5 {[%clk 0:02:25]}  Bxe5 {[%clk 0:02:10]} 16. dxe5 {[%clk 0:02:25]}  O-O-O {[%clk 0:02:06]} 17. a4 {[%clk 0:02:17]}  Qg7 {[%clk 0:01:58]} 18. a5 {[%clk 0:02:16]}  Qxe5 {[%clk 0:01:56]} 19. a6 {[%clk 0:02:16]}  b6 {[%clk 0:01:55]} 20. Bxe4 {[%clk 0:02:14]}  Bxe4 {[%clk 0:01:50]} 21. Qb5 {[%clk 0:02:11]}  Qd6 {[%clk 0:01:47]} 22. Be1 {[%clk 0:02:10]}  c6 {[%clk 0:01:45]} 23. Qe2 {[%clk 0:02:06]}  h4 {[%clk 0:01:41]} 24. Rf7 {[%clk 0:01:53]}  Rd7 {[%clk 0:01:40]} 25. Rxd7 {[%clk 0:01:43]}  Qxd7 {[%clk 0:01:40]} 26. Qg4 {[%clk 0:01:43]}  Qf7 {[%clk 0:01:34]} 27. c4 {[%clk 0:01:39]}  Bf5 {[%clk 0:01:30]} 28. Qe2 {[%clk 0:01:23]}  h3 {[%clk 0:01:27]} 29. Bc3 {[%clk 0:01:21]}  Rf8 {[%clk 0:01:24]} 30. Rf1 {[%clk 0:01:08]}  hxg2 {[%clk 0:01:22]} 31. Qxg2 {[%clk 0:01:07]}  Qe7 {[%clk 0:01:20]} 32. cxd5 {[%clk 0:01:02]}  cxd5 {[%clk 0:01:16]} 33. Be5 {[%clk 0:00:58]}  Be4 {[%clk 0:00:45]} 34. Rc1+ {[%clk 0:00:57]}  Kd8 {[%clk 0:00:45]} 35. Qd2 {[%clk 0:00:33]}  Qf7 {[%clk 0:00:35]} 36. Bc7+ {[%clk 0:00:21]}  Ke8 {[%clk 0:00:33]} 37. Qe2 {[%clk 0:00:18]}  Qd7 {[%clk 0:00:20]} 38. Bg3 {[%clk 0:00:14]}  Bf3 {[%clk 0:00:19]} 39. Qd3 {[%clk 0:00:13]}  Be4 {[%clk 0:00:19]} 40. Qe2 {[%clk 0:00:13]}  Bf3 {[%clk 0:00:18]} 41. Qc2 {[%clk 0:00:13]}  Be4 {[%clk 0:00:17]} 42. Qc8+ {[%clk 0:00:08]}  Qxc8 {[%clk 0:00:17]} 43. Rxc8+ {[%clk 0:00:08]}  Kf7 {[%clk 0:00:18]} 44. Rc7+ {[%clk 0:00:08]}  Kg6 {[%clk 0:00:17]} 45. Rxa7 {[%clk 0:00:08]}  Rf3 {[%clk 0:00:17]} 46. Re7 {[%clk 0:00:07]}  Rxe3 {[%clk 0:00:16]} 47. a7 {[%clk 0:00:07]}  d4 {[%clk 0:00:14]} 48. Rxe6+ {[%clk 0:00:07]}  Kf5 {[%clk 0:00:14]} 49. Rxe4 {[%clk 0:00:06]}  Rxe4 {[%clk 0:00:10]} 50. a8=Q {[%clk 0:00:06]} 1-0


[Site "https://www.chess.com"]

[Event "Titled Tuesday Blitz March 08 Early 2022"]
[White "Shuvalova, Polina"]
[Black "Jumabayev, Rinat"]
[WhiteFideId "24171760"]
[BlackFideId "13702661"]
[WhiteElo "2355"]
[BlackElo "2561"]
[Result "0-1"]
[Round "04"]
[TimeControl "180+1"]
[Date "2022.03.08"]
[WhiteClock "0:00:02"]
[BlackClock "0:00:14"]

1. d4 {[%clk 0:03:00]}  Nf6 {[%clk 0:02:59]} 2. Nf3 {[%clk 0:03:01]}  e6 {[%clk 0:03:00]} 3. Bf4 {[%clk 0:03:01]}  b6 {[%clk 0:03:00]} 4. e3 {[%clk 0:03:01]}  Bb7 {[%clk 0:03:00]} 5. h3 {[%clk 0:03:01]}  d5 {[%clk 0:02:56]} 6. Nbd2 {[%clk 0:02:58]}  Bd6 {[%clk 0:02:56]} 7. c3 {[%clk 0:02:56]}  O-O {[%clk 0:02:54]} 8. Bd3 {[%clk 0:02:56]}  c5 {[%clk 0:02:50]} 9. O-O {[%clk 0:02:56]}  Nc6 {[%clk 0:02:48]} 10. Ne5 {[%clk 0:02:49]}  Qc7 {[%clk 0:02:41]} 11. Ndf3 {[%clk 0:02:44]}  Ne4 {[%clk 0:02:34]} 12. Nxc6 {[%clk 0:02:33]}  Bxf4 {[%clk 0:02:22]} 13. exf4 {[%clk 0:02:32]}  Bxc6 {[%clk 0:02:22]} 14. Ne5 {[%clk 0:02:26]}  Bb7 {[%clk 0:02:22]} 15. g3 {[%clk 0:02:00]}  a5 {[%clk 0:02:10]} 16. Qe2 {[%clk 0:01:58]}  Rfe8 {[%clk 0:01:56]} 17. Rfe1 {[%clk 0:01:56]}  f6 {[%clk 0:01:32]} 18. Nf3 {[%clk 0:01:55]}  Nd6 {[%clk 0:01:32]} 19. a4 {[%clk 0:01:52]}  Bc6 {[%clk 0:01:27]} 20. Qc2 {[%clk 0:01:48]}  g6 {[%clk 0:01:26]} 21. Qd2 {[%clk 0:01:41]}  Re7 {[%clk 0:01:23]} 22. h4 {[%clk 0:01:39]}  Ne4 {[%clk 0:01:10]} 23. Qe3 {[%clk 0:01:32]}  Rd8 {[%clk 0:01:06]} 24. h5 {[%clk 0:01:25]}  Kg7 {[%clk 0:01:05]} 25. Nd2 {[%clk 0:01:13]}  e5 {[%clk 0:00:50]} 26. dxe5 {[%clk 0:00:54]}  fxe5 {[%clk 0:00:47]} 27. Nxe4 {[%clk 0:00:32]}  exf4 {[%clk 0:00:41]} 28. gxf4 {[%clk 0:00:17]}  dxe4 {[%clk 0:00:39]} 29. Bc4 {[%clk 0:00:14]}  Rf8 {[%clk 0:00:27]} 30. hxg6 {[%clk 0:00:12]}  hxg6 {[%clk 0:00:26]} 31. Rad1 {[%clk 0:00:08]}  Rxf4 {[%clk 0:00:27]} 32. Qg3 {[%clk 0:00:07]}  e3 {[%clk 0:00:16]} 33. Kh2 {[%clk 0:00:01]}  Rxc4 {[%clk 0:00:14]} 34. Qxc7 {[%clk 0:00:01]}  Rxc7 {[%clk 0:00:14]} 35. Rxe3 {[%clk 0:00:02]}  Re4 {[%clk 0:00:14]} 36. Kg3 {[%clk 0:00:02]}  Rxe3+ {[%clk 0:00:14]} 37. fxe3 {[%clk 0:00:02]}  Rd7 {[%clk 0:00:14]} 38. Rf1 {[%clk 0:00:02]}  Rd6 {[%clk 0:00:14]} 39. Kf2 {[%clk 0:00:02]}  Rf6+ {[%clk 0:00:14]} 0-1


[Site "https://www.chess.com"]

[Event "Titled Tuesday Blitz March 08 Early 2022"]
[White "Soderstrom, Adrian"]
[Black "Ibraev, Vasilij"]
[WhiteFideId "1745786"]
[BlackFideId "4175190"]
[WhiteElo "2107"]
[BlackElo "2121"]
[Result "1-0"]
[Round "04"]
[TimeControl "180+1"]
[Date "2022.03.09"]
[WhiteClock "0:00:11"]
[BlackClock "0:00:08"]

1. d4 {[%clk 0:03:00]}  Nf6 {[%clk 0:02:57]} 2. c4 {[%clk 0:03:00]}  e6 {[%clk 0:02:56]} 3. Nf3 {[%clk 0:02:58]}  b6 {[%clk 0:02:54]} 4. g3 {[%clk 0:02:57]}  Bb7 {[%clk 0:02:53]} 5. Bg2 {[%clk 0:02:57]}  c5 {[%clk 0:02:53]} 6. d5 {[%clk 0:02:56]}  exd5 {[%clk 0:02:52]} 7. O-O {[%clk 0:02:56]}  dxc4 {[%clk 0:02:39]} 8. e4 {[%clk 0:02:56]}  d6 {[%clk 0:02:37]} 9. Nc3 {[%clk 0:02:52]}  Be7 {[%clk 0:02:35]} 10. Nh4 {[%clk 0:02:33]}  O-O {[%clk 0:02:24]} 11. e5 {[%clk 0:02:14]}  Bxg2 {[%clk 0:02:14]} 12. exf6 {[%clk 0:02:13]}  Bxf1 {[%clk 0:01:55]} 13. fxe7 {[%clk 0:02:13]}  Qxe7 {[%clk 0:01:55]} 14. Nd5 {[%clk 0:02:14]}  Qd7 {[%clk 0:01:40]} 15. Kxf1 {[%clk 0:01:49]}  Nc6 {[%clk 0:01:40]} 16. Nf5 {[%clk 0:01:49]}  Qe6 {[%clk 0:00:55]} 17. Qg4 {[%clk 0:01:43]}  g6 {[%clk 0:00:52]} 18. Nh6+ {[%clk 0:00:44]}  Kh8 {[%clk 0:00:47]} 19. Qxe6 {[%clk 0:00:44]}  fxe6 {[%clk 0:00:46]} 20. Nc7 {[%clk 0:00:45]}  Rac8 {[%clk 0:00:39]} 21. Nxe6 {[%clk 0:00:45]}  Rfe8 {[%clk 0:00:30]} 22. Nf7+ {[%clk 0:00:43]}  Kg8 {[%clk 0:00:29]} 23. Nh6+ {[%clk 0:00:44]}  Kh8 {[%clk 0:00:26]} 24. Nf7+ {[%clk 0:00:32]}  Kg8 {[%clk 0:00:25]} 25. Nxd6 {[%clk 0:00:32]}  Rxe6 {[%clk 0:00:22]} 26. Nxc8 {[%clk 0:00:32]}  Kf7 {[%clk 0:00:20]} 27. Bf4 {[%clk 0:00:31]}  g5 {[%clk 0:00:15]} 28. Bxg5 {[%clk 0:00:28]}  Ke8 {[%clk 0:00:16]} 29. Rd1 {[%clk 0:00:20]}  Nd4 {[%clk 0:00:15]} 30. Nxa7 {[%clk 0:00:20]}  Kd7 {[%clk 0:00:15]} 31. Nb5 {[%clk 0:00:20]}  Re4 {[%clk 0:00:12]} 32. Nxd4 {[%clk 0:00:18]}  cxd4 {[%clk 0:00:12]} 33. Be3 {[%clk 0:00:18]}  d3 {[%clk 0:00:11]} 34. b3 {[%clk 0:00:16]}  Kc6 {[%clk 0:00:12]} 35. bxc4 {[%clk 0:00:15]}  Rxc4 {[%clk 0:00:11]} 36. Rxd3 {[%clk 0:00:15]}  b5 {[%clk 0:00:12]} 37. Ra3 {[%clk 0:00:15]}  Rc2 {[%clk 0:00:11]} 38. Ra7 {[%clk 0:00:14]}  h5 {[%clk 0:00:11]} 39. h4 {[%clk 0:00:15]}  b4 {[%clk 0:00:10]} 40. Kg2 {[%clk 0:00:15]}  Kb5 {[%clk 0:00:10]} 41. Kf3 {[%clk 0:00:15]}  Rb2 {[%clk 0:00:08]} 42. Kf4 {[%clk 0:00:11]} 1-0


[Site "https://www.chess.com"]